bitfinex/quotes_SOLUSD_20240914
["timestamp","ask_amount","ask_price","bid_price","bid_amount"]
[1726336289633,80.95265473,137.26,137.25,0.2561053]
[1726336289833,114.89527769,137.26,137.25,0.2561053]
[1726336290028,80.95265473,137.26,137.25,0.2561053]
[1726336291633,114.48843651,137.26,137.25,0.2561053]
[1726336291944,80.95265473,137.26,137.25,0.2561053]
[1726336293161,114.21363911,137.26,137.25,0.2561053]
[1726336293646,80.95265473,137.26,137.25,0.2561053]
[1726336293947,114.37315015,137.26,137.25,0.2561053]
[1726336301951,56.79930073,137.26,137.25,0.2561053]
[1726336303239,80.70167473,137.26,137.25,0.2561053]
[1726336303545,80.82716473,137.26,137.25,0.2561053]
[1726336303945,80.95265473,137.26,137.25,0.2561053]
[1726336304342,29.1975,137.22,137.21,0.2561053]
[1726336304528,29.44848,137.22,137.21,0.2561053]
[1726336304727,53.225364,137.22,137.21,0.2561053]
[1726336305628,83.53258921,137.22,137.21,0.2561053]
[1726336306350,83.65807921,137.22,137.21,0.2561053]
[1726336309357,103.65807921,137.22,137.21,0.2561053]
[1726336313634,101.65342704,137.22,137.21,0.2561053]
[1726336314428,81.65342704,137.22,137.21,0.2561053]
[1726336315443,89.25638035,137.22,137.21,0.2561053]
[1726336315957,65.10302635,137.22,137.21,0.2561053]
[1726336317358,89.25638035,137.22,137.21,0.2561053]
[1726336320454,65.10302635,137.22,137.21,0.2561053]
[1726336321738,29.51295331,137.22,137.21,0.2561053]
[1726336322162,7.60295331,137.22,137.21,0.2561053]
[1726336322456,21.91,137.24,137.21,22.02478112]
[1726336322659,26.77080798,137.25,137.22,14.20917397]
[1726336323165,26.77080798,137.25,137.21,20.56867927]
[1726336323757,26.77080798,137.25,137.22,14.20917397]
[1726336325249,26.77080798,137.25,137.23,16.3874]
[1726336325445,21.91,137.26,137.23,30.59657397]
[1726336325762,21.91,137.26,137.23,16.3874]
[1726336329939,29.1955,137.26,137.23,16.3874]
[1726336330440,29.196,137.25,137.23,16.3874]
[1726336330957,21.91,137.25,137.23,16.3874]
[1726336331461,21.91,137.26,137.23,16.3874]
[1726336335652,29.1954,137.26,137.23,16.3874]
[1726336343793,29.196,137.25,137.23,16.3874]
[1726336346382,7.2865,137.24,137.21,6.3595053]
[1726336346588,21.91,137.23,137.21,6.3595053]
[1726336364613,7.2855,137.26,137.22,14.20917397]
[1726336364912,7.59923195,137.27,137.24,14.20917397]
[1726336365407,29.50923195,137.27,137.24,14.20917397]
[1726336366018,36.79423195,137.27,137.23,14.20917397]
[1726336366801,29.50923195,137.27,137.24,14.20917397]
[1726336367110,21.91,137.27,137.24,14.20917397]
[1726336368710,21.91,137.27,137.23,14.20917397]
[1726336369006,21.91,137.29,137.25,14.20917397]
[1726336370793,29.1938,137.29,137.25,14.20917397]
[1726336374903,21.91,137.29,137.25,14.20917397]
[1726336375709,29.194,137.29,137.25,14.20917397]
[1726336375921,29.194,137.29,137.24,29.55637397]
[1726336376715,21.91,137.27,137.24,15.3472]
[1726336380907,21.91,137.27,137.21,35.83467927]
[1726336382423,29.1955,137.26,137.21,35.83467927]
[1726336385202,29.196,137.25,137.21,15.5221053]
[1726336385405,29.196,137.25,137.21,29.73127927]
[1726336388909,29.196,137.25,137.21,15.5221053]
[1726336398330,7.2866,137.24,137.21,15.5221053]
[1726336398535,29.1966,137.24,137.21,0.2561053]
[1726336406427,7.2871,137.23,137.21,0.2561053]
[1726336407522,29.1971,137.23,137.21,0.2561053]
[1726336416729,21.91,137.23,137.21,0.2561053]
[1726336416938,7.2875,137.22,137.21,0.2561053]
[1726336418119,21.91,137.23,137.21,0.2561053]
[1726336418337,29.1971,137.23,137.21,0.2561053]
[1726336418823,29.1975,137.22,137.21,0.2561053]
[1726336454782,21.91,137.22,137.21,0.2561053]
[1726336455901,36.79775541,137.23,137.21,0.2561053]
[1726336456181,7.60065541,137.23,137.21,0.2561053]
[1726336456478,7.286,137.25,137.21,0.2561053]
[1726336456979,21.91,137.24,137.21,0.2561053]
[1726336457187,7.286,137.25,137.21,1.71361431]
[1726336457371,7.286,137.25,137.21,0.2561053]
[1726336457877,29.196,137.25,137.21,0.2561053]
[1726336458779,21.91,137.25,137.21,0.2561053]
[1726336460091,7.60015675,137.28,137.23,30.54507397]
[1726336460287,32.64476515,137.3,137.25,14.20917397]
[1726336460592,32.64476515,137.3,137.27,14.20917397]
[1726336460593,25.36096515,137.3,137.27,14.20917397]
[1726336460957,21.91,137.32,137.27,14.20917397]
[1726336461268,21.91,137.32,137.28,1.45671925]
[1726336461470,21.91,137.32,137.27,14.20917397]
[1726336461678,7.2818,137.33,137.26,14.20917397]
[1726336461982,29.1918,137.33,137.26,14.20917397]
[1726336462166,7.2824,137.32,137.26,14.20917397]
[1726336464184,7.2828,137.31,137.25,14.20917397]
[1726336468994,7.2833,137.3,137.24,14.20917397]
[1726336469399,21.91,137.33,137.24,14.20917397]
[1726336469400,7.2839,137.29,137.24,14.20917397]
[1726336473399,7.2844,137.28,137.24,14.20917397]
[1726336473577,7.2844,137.28,137.23,30.54507397]
[1726336474669,7.284,137.29,137.23,30.54507397]
[1726336476683,7.2846,137.28,137.23,30.54507397]
[1726336476992,7.2852,137.27,137.23,16.3359]
[1726336477192,7.2854,137.26,137.22,6.4836]
[1726336478209,7.285,137.27,137.22,6.4836]
[1726336479894,7.2854,137.26,137.21,14.46527927]
[1726336480694,7.286,137.25,137.21,0.2561053]
[1726336481087,7.2855,137.26,137.21,0.2561053]
[1726336481404,7.2855,137.26,137.21,1.71347487]
[1726336486313,7.2855,137.26,137.21,0.2561053]
[1726336488213,7.286,137.25,137.21,0.2561053]
[1726336489802,7.2865,137.24,137.21,0.2561053]
[1726336492994,7.286,137.25,137.21,0.2561053]
[1726336493194,29.51095084,137.26,137.21,0.2561053]
[1726336494021,7.286,137.25,137.21,0.2561053]
[1726336504129,7.2865,137.24,137.21,0.2561053]
[1726336510327,7.2875,137.22,137.21,0.2561053]
[1726336513623,29.1975,137.22,137.21,0.2561053]
[1726336514013,60.83023231,137.22,137.21,0.2561053]
[1726336517205,37.05334831,137.22,137.21,0.2561053]
[1726336517402,36.92785831,137.22,137.21,0.2561053]
[1726336518224,14.89236831,137.22,137.21,0.2561053]
[1726336519028,21.91,137.23,137.21,0.2561053]
[1726336519235,7.2866,137.24,137.21,0.2561053]
[1726336519733,29.1966,137.24,137.21,0.2561053]
[1726336519942,7.287,137.23,137.21,0.2561053]
[1726336522016,21.91,137.22,137.21,0.2561053]
[1726336522216,7.287,137.23,137.21,0.2561053]
[1726336522530,29.197,137.23,137.21,0.2561053]
[1726336525937,7.2875,137.22,137.21,0.2561053]
[1726336526738,29.1975,137.22,137.21,0.2561053]
[1726336552949,53.225364,137.22,137.21,0.2561053]
[1726336556945,53.350854,137.22,137.21,0.2561053]
[1726336560562,73.350854,137.22,137.21,0.2561053]
[1726336562547,21.91,137.22,137.21,0.2561053]
[1726336563169,30.77845683,137.24,137.21,0.2561053]
[1726336563350,18.2117,137.28,137.21,0.2561053]
[1726336563549,19.4761638,137.28,137.21,0.2561053]
[1726336563871,7.60109725,137.27,137.21,0.2561053]
[1726336564273,29.1964,137.25,137.21,0.2561053]
[1726336564563,29.1964,137.25,137.21,14.46527927]
[1726336568651,29.1964,137.25,137.21,0.2561053]
[1726336572076,29.1965,137.24,137.21,0.2561053]
[1726336576977,21.91,137.26,137.22,14.20917397]
[1726336577158,21.91,137.26,137.21,0.2561053]
[1726336577480,29.1954,137.26,137.21,0.2561053]
[1726336584188,7.286,137.25,137.21,0.2561053]
[1726336588666,21.91,137.27,137.21,14.46527927]
[1726336588976,21.91,137.27,137.21,15.57505648]
[1726336589285,21.91,137.27,137.21,14.46527927]
[1726336590291,7.2855,137.26,137.21,14.46527927]
[1726336590483,29.1955,137.26,137.21,14.46527927]
[1726336595997,29.1955,137.26,137.21,0.2561053]
[1726336601594,21.91,137.27,137.21,0.2561053]
[1726336602175,21.91,137.25,137.21,0.2561053]
[1726336603089,29.1961,137.25,137.21,0.2561053]
[1726336606496,7.2861,137.25,137.21,0.2561053]
[1726336607106,7.2861,137.25,137.21,4.18927127]
[1726336607607,7.2861,137.25,137.21,0.2561053]
[1726336608586,7.2856,137.26,137.21,0.2561053]
[1726336609189,7.2856,137.26,137.22,3.9331654]
[1726336609395,7.2856,137.26,137.21,0.2561053]
[1726336611093,7.2861,137.25,137.21,0.2561053]
[1726336616298,7.2872,137.23,137.21,0.2561053]
[1726336616500,7.2875,137.22,137.21,0.2561053]
[1726336617708,29.1975,137.22,137.21,0.2561053]
[1726336623601,53.225364,137.22,137.21,0.2561053]
[1726336623795,53.350854,137.22,137.21,0.2561053]
[1726336623997,29.1975,137.22,137.21,0.2561053]
[1726336635333,7.2875,137.22,137.21,0.2561053]
[1726336642641,7.2871,137.23,137.21,0.2561053]
[1726336645125,29.1966,137.24,137.21,0.2561053]
[1726336645319,7.2866,137.24,137.21,0.2561053]
[1726336647238,29.196,137.25,137.21,0.2561053]
[1726336648437,29.196,137.25,137.21,15.7170053]
[1726336675247,7.2867,137.24,137.21,15.7170053]
[1726336687678,40.126,137.25,137.21,0.2561053]
[1726336687855,0.12549,137.26,137.21,0.2561053]
[1726336687856,29.1971,137.23,137.21,0.2561053]
[1726336688268,7.2871,137.23,137.21,0.2561053]
[1726336688872,29.1971,137.23,137.21,0.2561053]
[1726336689075,21.91,137.23,137.21,0.2561053]
[1726336690372,29.197,137.23,137.21,0.2561053]
[1726336690757,7.2866,137.24,137.21,0.2561053]
[1726336691973,29.196,137.25,137.21,0.2561053]
[1726336701985,21.91,137.24,137.21,0.2561053]
[1726336702975,21.91,137.25,137.21,0.2561053]
[1726336703351,7.2874,137.23,137.21,0.2561053]
[1726336705376,7.5932358,137.26,137.21,0.2561053]
[1726336705377,29.1966,137.24,137.21,0.2561053]
[1726336706266,7.287,137.23,137.21,0.2561053]
[1726336728182,7.2866,137.24,137.21,0.2561053]
[1726336742599,29.196,137.25,137.21,0.2561053]
[1726336749911,7.2866,137.24,137.21,0.2561053]
[1726336757148,7.2874,137.23,137.21,0.2561053]
[1726336758321,7.2875,137.22,137.21,0.2561053]
[1726336758736,29.1975,137.22,137.21,0.2561053]
[1726336767541,29.1971,137.23,137.21,0.2561053]
[1726336776665,29.1966,137.24,137.21,0.2561053]
[1726336778269,21.91,137.25,137.21,0.2561053]
[1726336778557,21.91,137.25,137.21,15.6674053]
[1726336778767,21.91,137.25,137.21,17.12375979]
[1726336786873,14.87505609,137.26,137.21,17.12375979]
[1726336787170,14.87505609,137.26,137.21,15.6674053]
[1726336787378,7.2854,137.26,137.21,15.6674053]
[1726336793471,7.58916174,137.27,137.21,15.6674053]
[1726336793777,14.87446174,137.27,137.21,15.6674053]
[1726336798686,7.2854,137.26,137.21,15.6674053]
[1726336800595,7.286,137.25,137.21,15.6674053]
[1726336801571,23.902374,137.26,137.21,15.6674053]
[1726336801882,7.2872,137.23,137.21,15.6674053]
[1726336802059,45.812374,137.26,137.21,15.6674053]
[1726336802060,7.2866,137.24,137.21,15.6674053]
[1726336811796,7.2871,137.23,137.21,0.2561053]
[1726336812099,0.12549,137.25,137.21,0.2561053]
[1726336812100,7.2875,137.22,137.21,0.2561053]
[1726336819292,53.225364,137.22,137.21,0.2561053]
[1726336819507,53.350854,137.22,137.21,0.2561053]
[1726336822803,80.96915901,137.22,137.21,0.2561053]
[1726336823723,122.458931,137.22,137.21,0.2561053]
[1726336824302,80.96915901,137.22,137.21,0.2561053]
[1726336830694,118.751243,137.22,137.21,0.2561053]
[1726336832113,120.02127672,137.22,137.21,0.2561053]
[1726336838619,117.27549961,137.22,137.21,0.2561053]
[1726336846939,29.32509,137.18,137.17,0.2561053]
[1726336847109,53.101974,137.18,137.17,0.2561053]
[1726336853339,53.101974,137.18,137.14,15.0006]
[1726336853340,53.101974,137.18,137.14,10.2567053]
[1726336855640,21.91,137.17,137.14,10.2567053]
[1726336856009,29.2011,137.16,137.14,10.2567053]
[1726336861035,29.2011,137.16,137.11,15.9821]
[1726336861430,53.104074,137.15,137.13,0.2561053]
[1726336862318,29.2017,137.15,137.13,0.2561053]
[1726336873645,29.2018,137.14,137.13,0.2561053]
[1726336873853,53.104174,137.14,137.13,0.2561053]
[1726336874326,53.355154,137.14,137.13,0.2561053]
[1726336875349,53.355154,137.14,137.13,0.22285446]
[1726336883327,7.2941,137.1,137.08,0.2561053]
[1726336883945,31.071284,137.09,137.08,0.2561053]
[1726336884139,52.981284,137.09,137.08,0.2561053]
[1726336884340,53.106774,137.09,137.08,0.2561053]
[1726336884536,53.106774,137.09,137.01,14.20917397]
[1726336884537,10.0,137.06,136.92,7.304]
[1726336884856,10.0,137.06,137.01,14.20917397]
[1726336885351,10.0,137.06,137.01,13.70917397]
[1726336885555,10.0,137.06,137.01,13.20917397]
[1726336885848,10.0,137.06,137.01,12.70917397]
[1726336886226,53.106774,137.09,136.92,10.56539392]
[1726336886227,10.0,137.04,136.92,10.56539392]
[1726336886431,10.0,137.04,136.99,14.20917397]
[1726336886633,10.0,137.06,137.01,12.70917397]
[1726336886837,10.0,137.06,137.02,1.4593905]
[1726336887253,10.0,137.06,137.01,12.70917397]
[1726336887661,10.0,137.06,137.01,33.68487397]
[1726336888043,10.0,137.06,137.03,14.20917397]
[1726336888251,53.29343806,137.09,137.03,14.20917397]
[1726336888252,10.0,137.08,137.03,14.20917397]
[1726336889563,1.0003076,137.07,137.02,14.20917397]
[1726336889871,10.0,137.06,137.01,35.68487397]
[1726336890349,10.0,137.06,137.01,21.4757]
[1726336891154,31.91,137.06,137.01,15.1448]
[1726336891337,10.0,137.06,137.01,29.35397397]
[1726336891540,10.0,137.06,137.02,14.20917397]
[1726336891744,10.0,137.06,137.03,14.20917397]
[1726336892763,10.0,137.08,137.03,14.20917397]
[1726336892960,10.0,137.08,137.04,14.20917397]
[1726336894258,33.1481429,137.1,137.06,14.20917397]
[1726336894566,10.6560637,137.1,137.06,14.20917397]
[1726336897249,10.6560637,137.1,137.05,14.20917397]
[1726336897454,10.6560637,137.1,137.04,20.49417397]
[1726336898563,1.0003076,137.09,137.04,6.285]
[1726336898756,10.0,137.08,137.04,6.285]
[1726336899163,10.0,137.08,137.03,14.20917397]
[1726336900269,1.0003076,137.07,137.01,21.4298]
[1726336900446,10.0,137.08,137.02,14.20917397]
[1726336900647,11.3184991,137.08,137.03,14.20917397]
[1726336901073,10.3181915,137.08,137.03,14.20917397]
[1726336902265,11.3184991,137.08,137.03,14.20917397]
[1726336902757,1.0003076,137.07,137.03,14.20917397]
[1726336903679,1.0003076,137.07,137.02,14.20917397]
[1726336903853,11.3184991,137.08,137.02,14.20917397]
[1726336904365,10.3181915,137.08,137.02,14.20917397]
[1726336904760,10.3181915,137.08,137.04,14.20917397]
[1726336906955,10.3181915,137.08,137.05,14.20917397]
[1726336907156,0.3181915,137.08,137.06,14.20917397]
[1726336908672,0.3181915,137.08,137.05,14.20917397]
[1726336910180,0.3181915,137.08,137.04,14.20917397]
[1726336914979,10.3181915,137.08,137.02,23.776884]
[1726336915184,10.3181915,137.08,137.03,14.20917397]
[1726336916374,11.3184991,137.08,137.03,14.20917397]
[1726336917754,10.3181915,137.08,137.03,14.20917397]
[1726336919182,11.3184991,137.08,137.03,14.20917397]
[1726336920178,10.3181915,137.08,137.03,14.20917397]
[1726336920379,11.3184991,137.08,137.03,14.20917397]
[1726336920584,11.3184991,137.08,137.0,0.12549]
[1726336920585,10.0,137.06,137.0,0.12549]
[1726336920779,10.0,137.06,136.99,44.027864]
[1726336920780,10.0,137.06,137.01,14.20917397]
[1726336921082,10.0,137.06,137.02,14.20917397]
[1726336924967,10.3181915,137.08,137.03,15.66846932]
[1726336926893,10.3181915,137.08,137.03,14.20917397]
[1726336927386,10.0,137.06,137.02,14.20917397]
[1726336931074,10.3181915,137.06,137.02,14.20917397]
[1726336932183,0.3181915,137.06,137.02,14.20917397]
[1726336932708,0.3181915,137.06,137.03,14.20917397]
[1726336940417,0.3181915,137.06,136.99,24.027864]
[1726336940595,0.3181915,137.06,137.03,14.20917397]
[1726336947223,0.3684171,137.06,137.03,14.20917397]
[1726336948636,0.3684171,137.06,137.04,14.20917397]
[1726336950029,0.3684171,137.06,137.05,14.20917397]
[1726336954930,0.2730526,137.09,137.05,14.46015397]
[1726336955136,0.2730526,137.09,137.08,14.20917397]
[1726336956408,0.2730526,137.09,137.07,14.20917397]
[1726336957530,0.2730526,137.09,137.06,14.20917397]
[1726336958132,0.2730526,137.09,137.07,14.20917397]
[1726336960026,0.2730526,137.09,137.08,14.20917397]
[1726336988667,0.2730526,137.09,137.03,0.12549]
[1726336988979,0.2730526,137.09,137.07,14.20917397]
[1726336990076,0.2730526,137.09,137.08,14.20917397]
[1726336993462,0.2730526,137.09,137.03,0.25098]
[1726336993771,0.2730526,137.09,137.07,14.20917397]
[1726336994156,10.0,137.08,137.07,14.20917397]
[1726336994363,10.0,137.08,137.02,6.38]
[1726336994671,10.0,137.08,137.04,14.20917397]
[1726336994854,1.0003076,137.07,137.04,14.20917397]
[1726336995270,10.0,137.06,137.01,15.8694]
[1726336995447,10.0,137.06,136.98,6.3817]
[1726336995774,10.0,137.06,137.02,14.20917397]
[1726336999574,1.0003076,137.05,137.02,14.20917397]
[1726336999780,11.0003076,137.06,137.02,14.20917397]
[1726336999962,10.0,137.04,137.01,14.20917397]
[1726337000754,10.0,137.04,137.03,14.20917397]
[1726337007885,10.1026468,137.06,137.03,14.20917397]
[1726337008195,10.1026468,137.06,137.05,14.20917397]
[1726337013300,10.1026468,137.06,137.04,14.20917397]
[1726337016191,10.0,137.04,137.03,14.20917397]
[1726337016603,10.0,137.04,137.02,14.20917397]
[1726337018190,10.0,137.04,137.01,14.20917397]
[1726337018401,10.0,137.02,137.01,14.20917397]
[1726337020276,10.0,137.04,137.01,14.20917397]
[1726337020484,10.0,137.04,137.03,14.20917397]
[1726337020874,16.1494468,137.06,136.97,16.2198]
[1726337020875,10.0,137.02,136.97,16.2198]
[1726337021196,10.0,137.02,136.96,24.027864]
[1726337021397,10.0,137.02,137.0,14.20917397]
[1726337021702,10.0,137.02,137.0,13.70917397]
[1726337023709,10.0,137.02,137.01,14.20917397]
[1726337029014,10.0,137.02,136.96,24.027864]
[1726337029187,10.0,137.02,137.01,14.20917397]
[1726337031610,31.91,137.02,137.01,14.20917397]
[1726337031787,10.0,137.02,137.01,14.20917397]
[1726337033493,10.0,137.02,136.96,23.776884]
[1726337033798,10.0,137.0,136.95,0.1550081]
[1726337033999,10.0,137.0,136.99,14.20917397]
[1726337036386,10.0,137.0,136.95,23.9318921]
[1726337036591,10.0,137.02,136.99,14.20917397]
[1726337036898,10.0,137.02,137.01,14.20917397]
[1726337040306,10.0,137.04,137.01,14.20917397]
[1726337040511,10.0,137.04,137.03,14.20917397]
[1726337040824,0.1026468,137.06,137.03,14.20917397]
[1726337040825,10.1026468,137.06,137.03,14.20917397]
[1726337041031,10.1026468,137.06,137.05,14.20917397]
[1726337042404,0.1026468,137.06,137.05,14.20917397]
[1726337043107,10.2576549,137.1,137.05,14.20917397]
[1726337043309,10.2576549,137.1,137.01,22.11948]
[1726337043310,11.2579625,137.1,137.08,14.20917397]
[1726337043613,10.0,137.08,137.07,14.20917397]
[1726337049232,10.0,137.08,137.03,0.25098]
[1726337049538,10.0,137.08,137.07,14.20917397]
[1726337057935,10.0,137.08,137.06,14.20917397]
[1726337063335,10.0,137.06,137.01,21.8685]
[1726337063544,10.0,137.06,137.05,14.20917397]
[1726337063724,10.0,137.06,137.01,21.8685]
[1726337063925,10.0,137.06,137.05,14.20917397]
[1726337065146,10.0,137.06,137.04,14.20917397]
[1726337067846,10.0,137.06,137.05,14.20917397]
[1726337103791,10.0,137.06,137.04,14.20917397]
[1726337104085,10.0,137.03,136.99,23.776884]
[1726337104381,10.0,137.01,136.98,23.2221]
[1726337104588,10.0,137.01,137.0,14.20917397]
[1726337107571,10.0,137.01,136.98,16.6485]
[1726337107762,10.0,137.01,137.0,14.20917397]
[1726337114991,10.0,137.03,137.0,14.20917397]
[1726337115171,10.0,137.05,137.02,14.20917397]
[1726337115371,10.0,137.05,136.98,15.8571]
[1726337115372,10.0,137.05,137.04,14.20917397]
[1726337130596,10.0,137.03,136.99,30.363564]
[1726337130918,10.0,137.03,137.02,14.20917397]
[1726337134510,10.0,137.01,137.0,14.20917397]
[1726337140421,10.0,137.01,136.97,1.4599059]
[1726337140603,10.0,137.01,136.97,23.776884]
[1726337141105,10.0,137.01,137.0,14.20917397]
[1726337141302,10.0,137.01,136.97,23.776884]
[1726337141618,10.0,137.01,137.0,14.20917397]
[1726337143325,10.0,137.01,137.0,13.70917397]
[1726337143513,10.0,137.01,137.0,14.20917397]
[1726337157347,10.0,136.99,136.96,43.776884]
[1726337157644,0.25098,137.05,136.98,14.20917397]
[1726337157950,0.12549,137.04,137.03,14.20917397]
[1726337158141,0.37647,137.04,137.03,14.20917397]
[1726337159449,15.4483,137.06,137.03,14.20917397]
[1726337159623,15.4483,137.06,137.04,14.20917397]
[1726337159828,0.37647,137.05,137.04,14.20917397]
[1726337161649,0.37647,137.05,136.98,23.776884]
[1726337161853,0.37647,137.05,137.03,14.20917397]
[1726337164249,1.3767776,137.05,137.03,14.20917397]
[1726337165637,1.3767776,137.05,137.02,14.20917397]
[1726337166155,1.3767776,137.05,136.96,49.865084]
[1726337166458,1.3767776,137.05,137.02,14.20917397]
[1726337167059,0.37647,137.05,137.02,14.20917397]
[1726337167265,0.25098,137.03,136.95,15.4239549]
[1726337167559,0.12549,137.01,136.99,14.20917397]
[1726337168231,0.25098,137.01,136.99,14.20917397]
[1726337168432,0.37647,137.0,136.99,14.20917397]
[1726337168741,0.25098,136.99,136.95,0.2576549]
[1726337169045,0.12549,136.99,136.98,14.20917397]
[1726337169647,0.25098,137.01,136.98,14.20917397]
[1726337169854,1.2512876,137.01,136.99,14.20917397]
[1726337170058,16.6323,137.02,137.0,14.20917397]
[1726337170247,25.76884015,137.04,137.01,14.20917397]
[1726337170552,25.76884015,137.04,137.02,14.20917397]
[1726337170754,26.76914775,137.04,137.02,14.20917397]
[1726337171331,0.12549,137.03,137.02,14.20917397]
[1726337171535,0.12549,137.03,137.01,14.20917397]
[1726337172947,1.0003076,137.02,137.01,14.20917397]
[1726337173740,1.2512876,137.02,137.01,14.20917397]
[1726337173955,0.37647,137.02,137.01,14.20917397]
[1726337175446,0.37647,137.02,136.95,15.3939549]
[1726337175751,0.37647,137.02,137.0,14.20917397]
[1726337175752,0.12549,137.02,137.0,14.20917397]
[1726337175950,1.3767776,137.02,137.01,14.20917397]
[1726337177265,0.25098,137.01,137.0,14.20917397]
[1726337177462,0.37647,137.01,137.0,14.20917397]
[1726337179369,0.37647,137.01,136.95,0.2576549]
[1726337179673,0.12549,137.0,136.99,14.20917397]
[1726337180453,1.1257976,137.0,136.95,0.2576549]
[1726337180776,1.3767776,137.0,136.99,14.20917397]
[1726337182577,0.37647,137.0,136.99,14.20917397]
[1726337183389,0.25098,136.99,136.95,0.2576549]
[1726337183569,0.12549,136.97,136.95,0.2576549]
[1726337183986,0.12549,136.97,136.96,14.20917397]
[1726337184570,0.12549,136.97,136.95,0.2576549]
[1726337184769,0.12549,136.97,136.96,14.20917397]
[1726337185290,0.25098,136.98,136.96,14.20917397]
[1726337185490,0.25098,136.98,136.97,14.20917397]
[1726337186066,39.30857946,137.02,136.97,14.20917397]
[1726337186269,39.30857946,137.02,137.0,14.20917397]
[1726337186494,39.30857946,137.02,136.95,0.2576549]
[1726337186667,39.30857946,137.02,136.99,14.20917397]
[1726337187786,0.37647,137.01,136.95,0.2576549]
[1726337187990,0.37647,137.01,136.99,14.20917397]
[1726337189980,1.2512876,137.0,136.99,14.20917397]
[1726337190288,0.25098,136.99,136.98,14.20917397]
[1726337190592,0.37647,136.99,136.98,14.20917397]
[1726337191189,0.37647,136.99,136.95,0.2576549]
[1726337191390,1.0003076,136.98,136.97,14.20917397]
[1726337191789,1.2512876,136.98,136.95,0.2576549]
[1726337191991,0.25098,136.98,136.97,14.20917397]
[1726337192177,0.37647,136.98,136.97,14.20917397]
[1726337194887,0.37647,136.98,136.95,0.2576549]
[1726337195195,0.37647,136.98,136.97,14.20917397]
[1726337195580,1.3767776,136.98,136.97,14.20917397]
[1726337196602,0.37647,136.98,136.97,14.20917397]
[1726337197388,0.37647,136.98,136.95,0.2576549]
[1726337197580,1.0003076,136.97,136.96,14.20917397]
[1726337198198,1.0003076,136.97,136.95,0.2576549]
[1726337198390,1.0003076,136.97,136.96,14.20917397]
[1726337198782,1.0003076,136.97,136.95,0.2576549]
[1726337199084,1.0003076,136.97,136.96,14.20917397]
[1726337200683,1.0003076,136.97,136.95,0.2576549]
[1726337200884,1.0003076,136.97,136.96,14.20917397]
[1726337202203,1.2512876,136.97,136.96,14.20917397]
[1726337202386,1.3767776,136.97,136.95,14.46682887]
[1726337202592,1.3767776,136.97,136.95,0.2576549]
[1726337203687,0.37647,136.97,136.95,0.2576549]
[1726337206109,1.3767776,136.97,136.95,0.2576549]
[1726337207195,0.37647,136.97,136.95,0.2576549]
[1726337207391,1.3767776,136.97,136.95,0.2576549]
[1726337212614,0.12549,136.97,136.95,0.2576549]
[1726337212811,0.37647,136.98,136.95,14.46682887]
[1726337213116,1.26740608,136.99,136.96,14.20917397]
[1726337213333,7.54511731,137.0,136.97,14.20917397]
[1726337213614,7.54511731,137.0,136.95,0.2576549]
[1726337213615,22.0682458,137.01,136.98,14.20917397]
[1726337214203,22.0682458,137.01,136.99,14.20917397]
[1726337214399,22.0682458,137.01,137.0,14.20917397]
[1726337214616,38.2822,137.06,137.0,14.20917397]
[1726337214814,39.54934625,137.06,137.01,14.20917397]
[1726337215016,39.54934625,137.06,137.0,14.20917397]
[1726337216101,39.54934625,137.06,136.96,20.0]
[1726337216305,39.54934625,137.06,136.98,14.20917397]
[1726337216306,1.0003076,137.05,136.98,14.20917397]
[1726337216504,24.027864,137.04,136.95,0.2576549]
[1726337216708,24.027864,137.04,136.97,14.20917397]
[1726337216709,45.967864,137.04,136.97,14.20917397]
[1726337216905,45.967864,137.04,136.95,0.2576549]
[1726337217227,46.9681716,137.04,136.97,14.20917397]
[1726337217522,0.12549,137.03,136.97,14.20917397]
[1726337218122,0.12549,137.03,136.96,14.20917397]
[1726337218697,0.25098,137.02,136.96,14.20917397]
[1726337218906,0.25098,137.0,136.96,14.20917397]
[1726337219109,1.0003076,136.99,136.96,14.20917397]
[1726337219402,1.0003076,136.98,136.96,14.20917397]
[1726337219706,1.2512876,137.0,136.96,14.20917397]
[1726337219910,0.12549,136.99,136.96,14.20917397]
[1726337220628,0.12549,136.99,136.95,14.46682887]
[1726337220933,0.12549,136.99,136.95,0.2576549]